bitfinex-derivatives/quotes_SOLF0:USTF0_20220109
["timestamp","ask_amount","ask_price","bid_price","bid_amount"]
[1641741850851,1.12319491,139.13,139.12,4.0837337]
[1641741854757,27.66479,139.21,139.12,4.0837337]
[1641741854958,27.66479,139.23,139.12,10.4257337]
[1641741855156,15.1692597,139.24,139.13,7.183392]
[1641741855357,15.1692597,139.24,139.15,27.66479]
[1641741855557,15.1692597,139.24,139.15,34.05979]
[1641741856160,0.81632209,139.23,139.16,4.08161046]
[1641741856559,0.81632209,139.25,139.16,4.08161046]
[1641741857362,4.81622209,139.25,139.16,4.08161046]
[1641741857962,0.81632209,139.24,139.16,4.08161046]
[1641741858364,0.81632209,139.25,139.16,72.48551046]
[1641741858763,0.81632209,139.27,139.17,4.08161046]
[1641741859362,3.9999,139.26,139.21,27.66479]
[1641741859564,3.9999,139.26,139.17,4.08161046]
[1641741859762,3.9999,139.26,139.16,75.5860022]
[1641741859763,0.81632209,139.25,139.16,75.5860022]
[1641741860464,0.81632209,139.25,139.17,4.08119319]
[1641741862671,0.81632209,139.27,139.17,12.64019319]
[1641741862970,0.81632209,139.27,139.18,4.08119319]
[1641741863471,4.81622209,139.27,139.18,31.74598319]
[1641741863871,0.81632209,139.26,139.19,4.08119319]
[1641741864974,4.81622209,139.26,139.19,4.08119319]
[1641741865275,4.81622209,139.26,139.18,27.66479]
[1641741865473,3.9999,139.25,139.18,27.66479]
[1641741865674,32.48101209,139.25,139.18,27.66479]
[1641741865874,28.48111209,139.25,139.18,27.66479]
[1641741866074,4.81622209,139.24,139.18,27.66479]
[1641741866274,0.81632209,139.24,139.18,27.66479]
[1641741866474,0.81632209,139.23,139.18,27.66479]
[1641741866876,0.81632209,139.24,139.18,27.66479]
[1641741867075,0.81632209,139.24,139.18,33.57679]
[1641741867475,0.81632209,139.26,139.19,4.08056727]
[1641741867675,0.81632209,139.26,139.21,27.66479]
[1641741867877,2.0,139.24,139.21,34.12079]
[1641741868375,0.81632209,139.23,139.21,34.12079]
[1641741868877,0.81632209,139.23,139.21,6.456]
[1641741869076,0.81632209,139.23,139.18,33.57679]
[1641741869478,0.81632209,139.23,139.19,4.08102371]
[1641741872087,0.81632209,139.23,139.18,27.66479]
[1641741872285,8.88032209,139.23,139.16,68.4039]
[1641741872490,12.88022209,139.23,139.15,27.66479]
[1641741872686,3.9999,139.21,139.15,27.66479]
[1641741872886,3.9999,139.21,139.16,4.08202717]
[1641741873486,0.81632209,139.2,139.16,4.08202717]
[1641741874186,0.81632209,139.22,139.16,4.08202717]
[1641741874786,4.81622209,139.22,139.16,4.08202717]
[1641741875186,0.81632209,139.21,139.16,4.08202717]
[1641741876490,3.9999,139.2,139.16,4.08202717]
[1641741876693,0.81632209,139.21,139.16,4.08202717]
[1641741876694,3.9999,139.19,139.16,4.08202717]
[1641741876893,3.9999,139.18,139.13,4.08202717]
[1641741877092,12.6589,139.18,139.13,4.08202717]
[1641741877292,0.81632209,139.17,139.13,4.08202717]
[1641741878094,0.81632209,139.17,139.1,27.66479]
[1641741878493,0.81632209,139.17,139.1,42.8340497]
[1641741878793,3.9999,139.18,139.1,42.8340497]
[1641741878994,0.81658036,139.16,139.11,4.0829018]
[1641741879296,0.81658036,139.16,139.11,14.06419972]
[1641741879497,0.81658036,139.18,139.11,14.06419972]
[1641741879898,0.81658036,139.2,139.12,4.0829018]
[1641741880098,0.81658036,139.2,139.12,6.79819972]
[1641741880697,0.81658036,139.2,139.13,4.0829018]
[1641741880899,0.81658036,139.2,139.13,6.79819972]
[1641741881399,0.81658036,139.2,139.13,4.0829018]
[1641741881599,0.81658036,139.21,139.14,4.0829018]
[1641741881802,0.81658036,139.21,139.14,37.8386918]
[1641741882002,0.81658036,139.21,139.14,33.75579]
[1641741882500,0.81658036,139.21,139.15,6.79929659]
[1641741883201,0.81658036,139.22,139.16,4.0829018]
[1641741883501,0.81658036,139.22,139.16,6.79929659]
[1641741884104,0.81658036,139.22,139.16,2.71639479]
[1641741884402,0.81658036,139.22,139.14,27.66479]
[1641741884403,2.36664778,139.21,139.14,27.66479]
[1641741885001,0.81658036,139.2,139.15,4.081973]
[1641741885203,1.796,139.19,139.15,6.803854]
[1641741885803,0.81658036,139.18,139.17,27.66479]
[1641741886004,0.81658036,139.18,139.17,35.37979]
[1641741886606,0.81658036,139.18,139.17,39.461763]
[1641741886806,0.81658036,139.18,139.17,42.183644]
[1641741887110,15.1692597,139.23,139.17,42.183644]
[1641741887507,2.0,139.24,139.17,42.183644]
[1641741887907,2.0,139.24,139.17,38.101671]
[1641741888207,0.81620713,139.23,139.18,4.08103563]
[1641741889509,0.81620713,139.23,139.19,2.721881]
[1641741890311,2.36844539,139.22,139.17,42.8340497]
[1641741890509,2.36844539,139.22,139.17,27.66479]
[1641741890710,0.81620713,139.21,139.18,4.08156798]
[1641741891409,0.81620713,139.21,139.18,6.80221049]
[1641741892010,0.81620713,139.21,139.19,4.08156798]
[1641741892212,0.81620713,139.21,139.19,6.80221049]
[1641741892811,0.81620713,139.21,139.19,2.72064251]
[1641741893112,0.81620713,139.23,139.17,27.66479]
[1641741893311,0.81620713,139.2,139.17,27.66479]
[1641741893711,0.81620713,139.2,139.18,2.72054995]
[1641741893913,0.81620713,139.23,139.18,6.8019164]
[1641741894113,0.81620713,139.19,139.18,6.8019164]
[1641741894514,0.81620713,139.23,139.18,4.08136645]
[1641741895417,0.81620713,139.23,139.19,15.1692597]
[1641741896318,0.81620713,139.23,139.2,4.08089258]
[1641741897219,0.81620713,139.23,139.18,4.08089258]
[1641741897418,15.1692597,139.26,139.18,4.08089258]
[1641741897619,15.1692597,139.26,139.21,7.179524]
[1641741897817,9.70228201,139.28,139.22,4.0]
[1641741898017,2.31888201,139.28,139.25,55.32958]
[1641741898219,59.18832832,139.34,139.25,63.46558]
[1641741898418,27.66479,139.35,139.25,63.46558]
[1641741898619,0.81584028,139.33,139.26,4.0792014]
[1641741899019,0.81584028,139.34,139.26,4.0792014]
[1641741899820,3.9999,139.31,139.26,4.0792014]
[1641741900020,34.95879,139.31,139.26,4.0792014]
[1641741900222,3.9999,139.29,139.22,27.66479]
[1641741900721,0.81584028,139.28,139.2,27.66479]
[1641741900920,11.90574028,139.28,139.2,27.66479]
[1641741901121,11.90574028,139.28,139.21,4.08050299]
[1641741901523,0.81584028,139.27,139.21,4.08050299]
[1641741902324,0.81584028,139.3,139.21,4.08050299]
[1641741902727,4.81574028,139.3,139.21,4.08050299]
[1641741903122,0.81584028,139.3,139.21,4.08050299]
[1641741903323,0.81584028,139.29,139.21,4.08050299]
[1641741903722,0.81584028,139.29,139.22,7.17900858]
[1641741903923,0.81584028,139.29,139.23,27.66479]
[1641741904223,0.81584028,139.3,139.23,31.74529299]
[1641741904722,5.9999,139.31,139.24,4.08050299]
[1641741904723,0.81584028,139.28,139.24,4.08050299]
[1641741905126,0.81584028,139.29,139.24,4.08050299]
[1641741905525,0.81584028,139.3,139.24,4.08050299]
[1641741906025,4.81574028,139.3,139.24,4.08050299]
[1641741906225,0.81584028,139.3,139.24,4.08050299]
[1641741906824,4.81574028,139.3,139.24,4.08050299]
[1641741907026,0.81584028,139.3,139.24,11.49350299]
[1641741907325,0.81584028,139.29,139.24,11.49350299]
[1641741907726,0.81584028,139.29,139.25,4.08050299]
[1641741908130,0.81584028,139.3,139.25,4.08050299]
[1641741909429,0.81584028,139.3,139.24,4.08050299]
[1641741910332,0.81584028,139.3,139.24,8.08050299]
[1641741910733,0.81584028,139.3,139.25,4.08050299]
[1641741910934,4.028e-05,139.31,139.27,7.1764326]
[1641741911136,27.66479,139.35,139.27,7.1764326]
[1641741911337,25.66489,139.35,139.27,7.1764326]
[1641741911540,3.9999,139.4,139.29,4.0]
[1641741911837,44.45844671,139.41,139.29,15.42340272]
[1641741912038,28.48038403,139.39,139.31,27.66479]
[1641741912437,0.81559403,139.38,139.31,27.66479]
[1641741912840,0.81559403,139.38,139.32,4.07746006]
[1641741913040,0.81559403,139.38,139.32,10.65646006]
[1641741913742,0.81559403,139.42,139.33,4.07746006]
[1641741914041,4.81549403,139.42,139.33,4.07746006]
[1641741914241,0.81559403,139.42,139.33,4.07746006]
[1641741914442,4.81549403,139.42,139.33,69.37056006]
[1641741914842,2.0,139.35,139.33,69.37056006]
[1641741915043,2.0,139.35,139.34,4.07746006]
[1641741915441,27.66479,139.43,139.33,6.477]
[1641741915641,7.17463051,139.46,139.33,6.477]
[1641741915642,3.9999,139.44,139.33,6.477]
[1641741915842,0.81533107,139.42,139.34,4.07746006]
[1641741916041,34.83942051,139.46,139.35,27.66479]
[1641741916242,34.83942051,139.46,139.36,1.18476893]
[1641741916243,2.81523107,139.45,139.36,1.18476893]
[1641741916444,37.65465158,139.46,139.36,7.38976893]
[1641741916742,2.81523107,139.47,139.38,1.18476893]
[1641741916941,2.81523107,139.46,139.36,6.205]
[1641741917141,2.81523107,139.47,139.36,6.205]
[1641741917542,2.34809748,139.46,139.41,1.18476893]
[1641741917743,2.34809748,139.46,139.37,13.0384895]
[1641741918041,2.34809748,139.46,139.4,1.18476893]
[1641741918241,5.16332855,139.46,139.4,1.18476893]
[1641741918441,2.81523107,139.45,139.37,1.18476893]
[1641741918644,34.83659048,139.51,139.35,94.75429]
[1641741918645,2.81523107,139.42,139.35,94.75429]
[1641741918843,6.092,139.42,139.35,94.75429]
[1641741919245,6.092,139.42,139.35,95.93905893]
[1641741919444,6.092,139.42,139.36,4.0760979]
[1641741919645,6.092,139.42,139.36,5.26086683]
[1641741919845,2.81523107,139.46,139.36,14.23186683]
[1641741920045,30.48002107,139.46,139.36,14.23186683]
[1641741920251,27.66479,139.46,139.36,13.0470979]
[1641741920447,2.81523107,139.48,139.38,1.18476893]
[1641741920847,2.81523107,139.47,139.38,1.18476893]
[1641741921047,2.81523107,139.48,139.38,1.18476893]
[1641741921249,66.787,139.5,139.38,1.18476893]
[1641741921449,2.81523107,139.45,139.37,8.35579797]
[1641741921648,2.81523107,139.43,139.35,94.75429]
[1641741921848,2.81523107,139.41,139.35,94.75429]
[1641741922049,30.48002107,139.4,139.34,27.66479]
[1641741922449,2.81523107,139.39,139.34,27.66479]
[1641741922852,2.81523107,139.38,139.3,98.39509]
[1641741923049,9.56423107,139.38,139.3,98.39509]
[1641741923250,2.81523107,139.36,139.3,27.66479]
[1641741923449,2.81523107,139.37,139.31,4.07783809]
[1641741923849,2.81523107,139.36,139.31,4.07783809]
[1641741924049,2.81523107,139.38,139.31,4.07783809]
[1641741924250,2.81523107,139.37,139.31,4.07783809]
[1641741924852,2.81523107,139.35,139.3,27.66479]
[1641741925052,2.81523107,139.36,139.3,27.66479]
[1641741925254,2.81523107,139.35,139.3,27.66479]
[1641741925655,2.81523107,139.34,139.3,27.66479]
[1641741926253,2.81523107,139.34,139.28,27.66479]
[1641741926254,2.81523107,139.31,139.28,27.66479]
[1641741926453,11.90723107,139.31,139.22,7.17900858]
[1641741926754,9.092,139.31,139.22,8.36377751]
[1641741926954,9.092,139.31,139.23,1.18476893]
[1641741927154,9.092,139.31,139.23,5.26394021]
[1641741927355,11.90723107,139.31,139.23,5.26394021]
[1641741927557,9.092,139.31,139.24,4.07917128]
[1641741927756,2.81523107,139.32,139.24,4.07917128]
[1641741927958,2.81523107,139.34,139.24,12.04717128]
[1641741928155,27.66479,139.31,139.24,12.04717128]
[1641741928358,27.66479,139.31,139.25,4.07917128]
[1641741928758,27.66479,139.31,139.26,1.18476893]
[1641741928959,27.66479,139.31,139.25,4.07917128]
[1641741929159,27.66479,139.33,139.27,4.07917128]
[1641741929358,27.66479,139.33,139.27,12.52717128]
[1641741929562,27.66479,139.33,139.28,1.18476893]
[1641741929761,2.81523107,139.37,139.27,8.448]
[1641741930060,27.66479,139.35,139.27,8.448]
[1641741930462,27.66479,139.35,139.28,4.07835551]
[1641741932063,27.66479,139.35,139.28,9.39376893]
[1641741932465,30.48002107,139.35,139.29,4.07835551]
[1641741932665,27.66479,139.35,139.29,4.07835551]
[1641741933266,27.66479,139.35,139.27,1.18476893]
[1641741933465,27.66479,139.35,139.25,4.07835551]
[1641741933665,27.66479,139.35,139.28,1.18476893]
[1641741934065,27.66479,139.35,139.26,5.698]
[1641741934265,27.66479,139.35,139.29,5.26312444]
[1641741934665,27.66479,139.35,139.3,4.07835551]
[1641741935066,27.66479,139.35,139.29,6.416]
[1641741935668,27.66479,139.35,139.3,4.07811497]
[1641741936469,27.66479,139.35,139.27,4.07811497]
[1641741936668,27.66479,139.35,139.28,1.18476893]
[1641741936869,27.66479,139.35,139.27,4.07811497]
[1641741937270,27.66479,139.35,139.28,1.18476893]
[1641741937470,27.66479,139.35,139.28,8.04576893]
[1641741937671,27.66479,139.35,139.29,4.07811497]
[1641741938072,27.66479,139.35,139.3,1.18476893]
[1641741938374,27.66479,139.35,139.29,12.09111497]
[1641741938671,27.66479,139.35,139.3,1.18476893]
[1641741939873,27.66479,139.35,139.26,68.3787]
[1641741940375,27.66479,139.35,139.3,1.18476893]
[1641741940673,27.66479,139.35,139.29,1.18476893]
[1641741941074,27.66479,139.35,139.26,68.3787]
[1641741941474,27.66479,139.35,139.27,4.07833913]
[1641741941675,27.66479,139.35,139.27,12.07633913]
[1641741942175,27.66479,139.35,139.3,1.18476893]
[1641741942377,27.66479,139.35,139.3,7.12076893]
[1641741942577,27.66479,139.37,139.3,5.936]
[1641741942778,27.66479,139.37,139.32,1.18476893]
[1641741942978,27.66479,139.37,139.31,4.07833913]
[1641741943178,27.66479,139.37,139.3,5.936]
[1641741943380,27.66479,139.37,139.31,1.18476893]
[1641741943779,27.66479,139.37,139.31,5.26233214]
[1641741943979,27.66479,139.37,139.31,4.07756321]
[1641741944179,58.14481107,139.37,139.29,1.18476893]
[1641741944579,55.32958,139.37,139.3,5.26292503]
[1641741944780,55.32958,139.37,139.31,1.18476893]
[1641741944984,55.32958,139.37,139.3,12.2181561]
[1641741945281,55.32958,139.37,139.31,4.0781561]
[1641741945883,55.32958,139.37,139.3,9.32476893]
[1641741946382,55.32958,139.37,139.31,4.07777566]
[1641741947184,55.32958,139.37,139.27,9.456]
[1641741947386,58.14481107,139.37,139.29,1.18476893]
[1641741947684,2.81523107,139.36,139.28,5.26307459]
[1641741947884,58.14481107,139.37,139.28,5.26307459]
[1641741948084,27.66479,139.33,139.29,4.07830566]
[1641741949086,30.48002107,139.33,139.25,1.18476893]
[1641741949285,2.81523107,139.32,139.24,16.33799492]
[1641741949487,2.81523107,139.32,139.26,4.07895943]
[1641741949684,30.48002107,139.33,139.26,4.07895943]
[1641741949885,30.48002107,139.33,139.25,4.07895943]
[1641741950086,27.66479,139.29,139.25,4.07895943]
[1641741950286,27.66479,139.33,139.25,4.07895943]
[1641741950487,27.66479,139.33,139.27,1.18476893]
[1641741950687,27.66479,139.33,139.29,1.18476893]
[1641741951189,27.66479,139.33,139.27,5.908]
[1641741951389,15.15322599,139.37,139.31,1.18476893]
[1641741951590,15.15322599,139.37,139.31,7.928]
[1641741952089,27.66479,139.36,139.32,4.07796614]
[1641741952492,2.81523107,139.35,139.25,42.25254671]
[1641741952693,2.81523107,139.29,139.25,40.45854671]
[1641741952892,11.47423107,139.29,139.25,18.45854671]
[1641741953093,2.81523107,139.28,139.25,18.45854671]
[1641741953292,2.81523107,139.27,139.21,59.18832832]
[1641741953593,2.81523107,139.26,139.21,59.18832832]
[1641741953792,10.35723516,139.26,139.22,4.08002046]
[1641741953991,7.54200409,139.26,139.22,4.08002046]
[1641741954192,27.66479,139.23,139.22,4.08002046]
[1641741954691,28.48079409,139.23,139.2,4.08002046]
[1641741955192,2.81523107,139.28,139.17,77.80672855]
[1641741955193,0.81600409,139.22,139.18,4.08002046]
[1641741955393,2.81523107,139.32,139.2,1.18476893]
[1641741955594,65.0867,139.34,139.22,2.71297721]
[1641741955792,2.81523107,139.35,139.23,70.5391]
[1641741955994,2.81523107,139.34,139.23,80.18086893]
[1641741956192,27.66479,139.3,139.23,80.18086893]
[1641741956395,27.66479,139.3,139.24,2.71297721]
[1641741956593,27.66479,139.3,139.24,6.79239689]
[1641741956994,0.81588394,139.29,139.24,4.07941968]
[1641741959799,0.81588394,139.29,139.25,1.18476893]
[1641741960198,27.66479,139.27,139.24,13.31441968]
[1641741960401,27.66479,139.27,139.24,9.235]
[1641741960801,0.81588394,139.26,139.25,4.07940357]
[1641741962404,0.81588394,139.26,139.2,68.413]
[1641741962604,0.81588394,139.26,139.21,1.18476893]
[1641741962804,0.81588394,139.26,139.2,69.59776893]
[1641741963004,0.81588394,139.26,139.21,4.08010179]
[1641741963204,0.81588394,139.26,139.21,6.79049822]
[1641741963404,0.81588394,139.26,139.23,1.18476893]
[1641741963605,0.81588394,139.26,139.21,4.08010179]
[1641741963805,0.81588394,139.26,139.2,68.413]
[1641741964103,0.81588394,139.26,139.21,5.26442828]
[1641741964306,0.81588394,139.26,139.21,4.07965935]
[1641741964504,0.81588394,139.26,139.22,4.07965935]
[1641741964904,0.81588394,139.26,139.21,6.78800695]
[1641741965404,0.81588394,139.26,139.22,4.07965935]
[1641741965805,0.81588394,139.26,139.22,6.78800695]
[1641741966204,0.81588394,139.26,139.23,4.07965935]
[1641741967606,0.81588394,139.26,139.23,11.54165935]
[1641741968207,0.81588394,139.26,139.24,4.07965935]
[1641741969009,0.81588394,139.26,139.21,4.07965935]
[1641741969208,0.81588394,139.26,139.21,5.26442828]
[1641741969909,0.81588394,139.26,139.22,4.07965935]
[1641741970208,27.66479,139.24,139.22,4.07965935]
[1641741970409,27.66479,139.24,139.21,4.07965935]
[1641741970909,0.81588394,139.23,139.2,4.07965935]
[1641741971310,0.81588394,139.23,139.16,72.63335935]
[1641741971710,0.81588394,139.23,139.17,4.07965935]
[1641741971913,0.81588394,139.23,139.17,13.26065935]
[1641741972111,0.81588394,139.23,139.21,1.18476893]
[1641741972410,0.81588394,139.23,139.22,1.18476893]
[1641741972613,0.81588394,139.23,139.22,5.26442828]
[1641741973012,0.81588394,139.28,139.22,7.97179663]
[1641741973211,0.81588394,139.28,139.22,6.7870277]
[1641741973612,0.81588394,139.28,139.23,6.7870277]
[1641741973812,0.81588394,139.28,139.23,7.97179663]
[1641741974013,0.81588394,139.28,139.24,4.07965935]
[1641741977116,3.63111501,139.28,139.24,4.07965935]
[1641741977317,3.63111501,139.28,139.21,1.18476893]
[1641741977516,0.81588394,139.28,139.21,1.18476893]
[1641741977718,0.81588394,139.28,139.19,4.07965935]
[1641741977917,0.81588394,139.27,139.22,6.79249398]
[1641741978117,0.81588394,139.27,139.25,1.18476893]
[1641741978317,0.81588394,139.28,139.25,1.18476893]
[1641741978518,0.81588394,139.28,139.25,7.822]
[1641741979619,3.63111501,139.28,139.25,7.822]
[1641741979818,3.63111501,139.28,139.21,1.18476893]
[1641741980219,31.29590501,139.28,139.21,1.18476893]
[1641741980418,0.81588394,139.27,139.22,4.07981224]
[1641741980819,0.81588394,139.27,139.19,4.07981224]
[1641741981019,0.81588394,139.27,139.23,2.71305445]
[1641741981224,0.81588394,139.27,139.23,11.18205445]
[1641741981519,0.81588394,139.27,139.24,4.07981224]
[1641741982022,0.81588394,139.27,139.24,6.79286669]
[1641741982419,0.81588394,139.27,139.25,4.07981224]
[1641741982620,0.81588394,139.27,139.25,6.79286669]
[1641741983021,0.81588394,139.27,139.26,4.07981224]
[1641741983519,0.81588394,139.27,139.26,6.79286669]
[1641741985922,0.81588394,139.27,139.26,2.71305445]
[1641741986123,3.63111501,139.27,139.23,15.26184476]
[1641741986322,27.66479,139.24,139.21,15.26483386]
[1641741986522,34.02679,139.24,139.21,15.26483386]
[1641741986721,0.81588394,139.23,139.21,15.26483386]
[1641741987423,0.81588394,139.23,139.19,1.18476893]
[1641741988022,0.81588394,139.23,139.2,4.08097617]
[1641741988425,0.81588394,139.23,139.19,1.18476893]
[1641741989523,8.63688394,139.23,139.19,1.18476893]
[1641741989728,11.45211501,139.23,139.17,66.4391]
[1641741989925,2.81523107,139.21,139.16,15.26483386]
[1641741990125,2.81523107,139.19,139.18,4.08158019]
[1641741990327,65.67081107,139.19,139.16,15.26483386]
[1641741990525,63.67146394,139.19,139.16,15.26483386]
[1641741990727,63.67146394,139.19,139.14,1.18476893]
[1641741990926,62.85558,139.19,139.13,16.44960279]
[1641741991126,65.67081107,139.19,139.13,15.26483386]
[1641741991626,1.75229167,139.18,139.14,4.08238706]
[1641741991825,4.56752274,139.18,139.14,4.08238706]
[1641741992426,27.66479,139.15,139.13,15.26483386]
[1641741992627,27.66479,139.15,139.11,25.89373786]
[1641741992827,27.66479,139.15,139.12,1.18476893]
[1641741993027,1.75229167,139.14,139.12,8.655]
[1641741993227,1.75229167,139.14,139.13,1.18476893]
[1641741993427,27.66479,139.15,139.13,5.26667735]
[1641741993926,27.66479,139.15,139.14,4.08190842]
[1641741994828,27.66479,139.15,139.11,4.08190842]
[1641741995026,27.66479,139.15,139.14,4.08190842]
[1641741995926,27.66479,139.15,139.14,1.18476893]
[1641741996327,27.66479,139.15,139.14,5.26667735]
[1641741997530,27.66479,139.15,139.14,4.08190842]
[1641741998029,27.66479,139.15,139.14,1.18476893]
[1641741998230,27.66479,139.19,139.14,1.18476893]
[1641741998429,27.66479,139.19,139.15,1.18476893]
[1641741998830,27.66479,139.19,139.16,4.08190842]
[1641741999833,27.66479,139.19,139.12,4.08190842]
[1641742000434,27.66479,139.19,139.15,1.18476893]
[1641742001035,27.66479,139.19,139.16,4.08190842]
[1641742001836,27.66479,139.19,139.15,4.08190842]
[1641742002938,10.00017143,139.26,139.16,4.0]
[1641742003138,7.18494036,139.26,139.2,1.18476893]
[1641742003339,7.18494036,139.26,139.2,7.65076893]
[1641742003738,7.18494036,139.26,139.2,6.466]
[1641742003941,2.81523107,139.26,139.2,6.466]
[1641742004440,27.66479,139.22,139.2,6.466]
[1641742005442,27.66479,139.22,139.19,1.18476893]
[1641742006042,27.66479,139.22,139.2,4.08084331]
[1641742006442,27.66479,139.22,139.15,15.26483386]
[1641742006643,27.66479,139.22,139.18,1.18476893]
[1641742006842,27.66479,139.22,139.16,4.08143845]
[1641742007043,27.66479,139.22,139.18,1.18476893]
[1641742007444,27.66479,139.22,139.16,4.08143845]
[1641742007643,27.66479,139.24,139.16,4.08143845]
[1641742007843,27.66479,139.24,139.16,6.036]
[1641742008044,27.66479,139.24,139.2,1.18476893]
[1641742008444,27.66479,139.24,139.17,4.08143845]
[1641742008645,27.66479,139.24,139.2,1.18476893]
[1641742008846,27.66479,139.24,139.14,86.61833386]
[1641742009048,27.66479,139.24,139.17,1.18476893]
[1641742009246,27.66479,139.24,139.14,82.61833386]
[1641742009247,1.74838903,139.23,139.15,4.08108006]
[1641742009648,1.74838903,139.23,139.17,1.18476893]
[1641742010147,1.74838903,139.23,139.18,4.08108006]
[1641742010550,1.74838903,139.23,139.17,5.26584899]
[1641742010952,1.74838903,139.23,139.18,4.08108006]
[1641742011551,1.74838903,139.23,139.18,5.26584899]
[1641742011751,1.74838903,139.23,139.15,4.08108006]
[1641742011950,1.74838903,139.23,139.17,1.18476893]
[1641742011951,4.5636201,139.23,139.17,1.18476893]
[1641742012150,1.74838903,139.23,139.17,1.18476893]
[1641742012551,1.74838903,139.23,139.18,4.08108006]
[1641742012751,1.74838903,139.23,139.18,5.26584899]
[1641742013152,1.74838903,139.23,139.17,8.535]
[1641742013353,1.74838903,139.23,139.2,1.18476893]
[1641742013553,1.74838903,139.23,139.21,1.18476893]
[1641742013754,1.74838903,139.23,139.22,1.18476893]
[1641742014454,1.74838903,139.25,139.22,5.26494666]
[1641742014854,1.74838903,139.25,139.22,4.08017773]
[1641742015154,1.74838903,139.27,139.24,1.18476893]
[1641742015556,42.92663476,139.31,139.23,4.08017773]
[1641742015755,42.92663476,139.31,139.24,1.18476893]
[1641742015955,27.66479,139.31,139.24,1.18476893]
[1641742016555,27.66479,139.28,139.24,1.18476893]
[1641742018559,27.66479,139.28,139.2,9.935]
[1641742019257,27.66479,139.28,139.21,4.07976787]
[1641742019458,27.66479,139.28,139.24,1.18476893]
[1641742019658,27.66479,139.28,139.21,4.07976787]
[1641742020961,27.66479,139.28,139.24,1.18476893]
[1641742021361,27.66479,139.28,139.2,5.935]
[1641742021562,2.81523107,139.25,139.18,15.26483386]
[1641742021761,10.00094587,139.24,139.18,16.44960279]
[1641742021960,10.00094587,139.24,139.18,1.18476893]
[1641742022360,10.00094587,139.24,139.13,15.26483386]
[1641742022860,27.66479,139.22,139.18,1.18476893]
[1641742023062,2.81523107,139.21,139.17,1.18476893]
[1641742023662,2.81523107,139.21,139.14,15.26483386]
[1641742024262,9.35623107,139.21,139.15,4.08171604]
[1641742024563,2.81523107,139.2,139.15,4.08171604]
[1641742024762,27.66479,139.17,139.15,4.08171604]
[1641742025063,36.00179,139.17,139.15,4.08171604]
[1641742025261,36.00179,139.17,139.14,4.08171604]
[1641742025661,36.00179,139.17,139.12,80.52193386]
[1641742026065,36.00179,139.17,139.13,4.08273932]
[1641742026562,38.81702107,139.17,139.13,4.08273932]
[1641742026764,2.81523107,139.15,139.13,4.08273932]
[1641742026962,2.81523107,139.14,139.1,16.44960279]
[1641742027161,2.81523107,139.13,139.1,16.44960279]
[1641742027361,11.63723107,139.14,139.1,16.44960279]
[1641742027563,2.81523107,139.13,139.1,15.26483386]
[1641742027764,11.63723107,139.14,139.1,15.26483386]
[1641742028162,11.63723107,139.14,139.08,1.18476893]
[1641742028363,2.81523107,139.09,139.07,15.26483386]
[1641742028565,6.601,139.09,139.07,15.26483386]
[1641742028764,27.66479,139.08,139.07,15.26483386]
[1641742029364,27.66479,139.08,139.07,16.44960279]
[1641742029565,27.66479,139.1,139.07,16.44960279]
[1641742029764,27.66479,139.1,139.08,1.18476893]
[1641742029965,27.66479,139.1,139.06,2.7084572]
[1641742030765,2.15924953,139.09,139.06,2.7084572]
[1641742031169,2.15924953,139.09,139.05,1.18476893]
[1641742031968,2.15924953,139.09,139.06,2.7084572]
[1641742032770,2.15924953,139.09,139.05,1.18476893]
[1641742032969,2.15924953,139.09,139.02,25.86988565]
[1641742033169,2.15924953,139.09,139.08,1.18476893]
[1641742033369,2.15924953,139.09,139.08,8.40276893]
[1641742033570,2.15924953,139.15,139.08,8.40276893]
[1641742033971,2.15924953,139.15,139.11,1.18476893]
[1641742034171,2.15924953,139.15,139.11,9.68076893]
[1641742034372,2.15924953,139.17,139.11,9.68076893]
[1641742034570,2.15924953,139.17,139.11,8.496]
[1641742034770,27.66479,139.16,139.11,8.496]
[1641742035170,30.48002107,139.16,139.11,8.496]
[1641742035372,2.15924953,139.15,139.1,1.18476893]
[1641742035573,4.9744806,139.15,139.1,1.18476893]
[1641742035872,2.81523107,139.13,139.07,70.4487]
[1641742036072,2.81523107,139.12,139.03,15.26483386]
[1641742036272,4.9744806,139.12,139.03,89.87793386]
[1641742036476,2.15924953,139.12,139.08,1.18476893]
[1641742036772,2.15924953,139.11,139.08,1.18476893]
[1641742036975,2.15924953,139.11,139.09,1.18476893]
[1641742037674,2.15924953,139.12,139.09,1.18476893]
[1641742038073,2.15924953,139.1,139.09,1.18476893]
[1641742038473,2.15924953,139.12,139.09,1.18476893]
[1641742040978,40.56869444,139.26,139.11,1.18476893]
[1641742040979,10.00249524,139.21,139.11,1.18476893]